{"text_format":"3","workbook":"xlsx","n_sheets":5,"sheets":["Podsumowanie od początku roku","1. kw","2. kw","3. kw","4. kw"],"not_rendered":{"defined_names":12},"read":"whole","date_system":"1900"}

{"sheet":"Podsumowanie od początku roku","index":0,"n_rows":36,"n_cols":12,"rows_kept":36,"merged":[[3,0,3,6]]}
["Nazwa firmy"]
["Śledzenie obecności, Podsumowanie od początku roku"]
["Data"]
[{"$f":"Nazwa_firmy","v":"Nazwa firmy"},{"$nulls":6},"POUFNE"]
["Nazwisko","Imię","Urlop","Osobiste","Zwolnienie lekarskie","PESEL","Stanowisko","Kierownik","Data zatrudnienia","Komentarze","Dni urlopu \nrocznie","Pozostałe \ndni urlopu"]
["Nazwisko","Imię",{"$f":"SUM('1. kw:4. kw'!C6)","v":3},{"$f":"SUM('1. kw:4. kw'!D6)","v":0},{"$f":"SUM('1. kw:4. kw'!E6)","v":1},"xxxxxxxxxxx","Menedżer","Imię i nazwisko",null,null,10,{"$f":"K6-C6","v":7}]
[null,null,{"$f":"SUM('1. kw:4. kw'!C7)","v":0},{"$f":"SUM('1. kw:4. kw'!D7)","v":0},{"$f":"SUM('1. kw:4. kw'!E7)","v":0},{"$nulls":6},{"$f":"K7-C7","v":0}]
[null,null,{"$f":"SUM('1. kw:4. kw'!C8)","v":0},{"$f":"SUM('1. kw:4. kw'!D8)","v":0},{"$f":"SUM('1. kw:4. kw'!E8)","v":0},{"$nulls":6},0]
[null,null,{"$f":"SUM('1. kw:4. kw'!C9)","v":0},{"$f":"SUM('1. kw:4. kw'!D9)","v":0},{"$f":"SUM('1. kw:4. kw'!E9)","v":0},{"$nulls":6},0]
[null,null,{"$f":"SUM('1. kw:4. kw'!C10)","v":0},{"$f":"SUM('1. kw:4. kw'!D10)","v":0},{"$f":"SUM('1. kw:4. kw'!E10)","v":0},{"$nulls":6},0]
[null,null,{"$f":"SUM('1. kw:4. kw'!C11)","v":0},{"$f":"SUM('1. kw:4. kw'!D11)","v":0},{"$f":"SUM('1. kw:4. kw'!E11)","v":0},{"$nulls":6},0]
[null,null,{"$f":"SUM('1. kw:4. kw'!C12)","v":0},{"$f":"SUM('1. kw:4. kw'!D12)","v":0},{"$f":"SUM('1. kw:4. kw'!E12)","v":0},{"$nulls":6},0]
[null,null,{"$f":"SUM('1. kw:4. kw'!C13)","v":0},{"$f":"SUM('1. kw:4. kw'!D13)","v":0},{"$f":"SUM('1. kw:4. kw'!E13)","v":0},{"$nulls":6},0]
[null,null,{"$f":"SUM('1. kw:4. kw'!C14)","v":0},{"$f":"SUM('1. kw:4. kw'!D14)","v":0},{"$f":"SUM('1. kw:4. kw'!E14)","v":0},{"$nulls":6},0]
[null,null,{"$f":"SUM('1. kw:4. kw'!C15)","v":0},{"$f":"SUM('1. kw:4. kw'!D15)","v":0},{"$f":"SUM('1. kw:4. kw'!E15)","v":0},{"$nulls":6},0]
[null,null,{"$f":"SUM('1. kw:4. kw'!C16)","v":0},{"$f":"SUM('1. kw:4. kw'!D16)","v":0},{"$f":"SUM('1. kw:4. kw'!E16)","v":0},{"$nulls":6},0]
[null,null,{"$f":"SUM('1. kw:4. kw'!C17)","v":0},{"$f":"SUM('1. kw:4. kw'!D17)","v":0},{"$f":"SUM('1. kw:4. kw'!E17)","v":0},{"$nulls":6},0]
[null,null,{"$f":"SUM('1. kw:4. kw'!C18)","v":0},{"$f":"SUM('1. kw:4. kw'!D18)","v":0},{"$f":"SUM('1. kw:4. kw'!E18)","v":0},{"$nulls":6},0]
[null,null,{"$f":"SUM('1. kw:4. kw'!C19)","v":0},{"$f":"SUM('1. kw:4. kw'!D19)","v":0},{"$f":"SUM('1. kw:4. kw'!E19)","v":0},{"$nulls":6},0]
[null,null,{"$f":"SUM('1. kw:4. kw'!C20)","v":0},{"$f":"SUM('1. kw:4. kw'!D20)","v":0},{"$f":"SUM('1. kw:4. kw'!E20)","v":0},{"$nulls":6},0]
[null,null,{"$f":"SUM('1. kw:4. kw'!C21)","v":0},{"$f":"SUM('1. kw:4. kw'!D21)","v":0},{"$f":"SUM('1. kw:4. kw'!E21)","v":0},{"$nulls":6},0]
[null,null,{"$f":"SUM('1. kw:4. kw'!C22)","v":0},{"$f":"SUM('1. kw:4. kw'!D22)","v":0},{"$f":"SUM('1. kw:4. kw'!E22)","v":0},{"$nulls":6},0]
[null,null,{"$f":"SUM('1. kw:4. kw'!C23)","v":0},{"$f":"SUM('1. kw:4. kw'!D23)","v":0},{"$f":"SUM('1. kw:4. kw'!E23)","v":0},{"$nulls":6},0]
[null,null,{"$f":"SUM('1. kw:4. kw'!C24)","v":0},{"$f":"SUM('1. kw:4. kw'!D24)","v":0},{"$f":"SUM('1. kw:4. kw'!E24)","v":0},{"$nulls":6},0]
[null,null,{"$f":"SUM('1. kw:4. kw'!C25)","v":0},{"$f":"SUM('1. kw:4. kw'!D25)","v":0},{"$f":"SUM('1. kw:4. kw'!E25)","v":0},{"$nulls":6},0]
[null,null,{"$f":"SUM('1. kw:4. kw'!C26)","v":0},{"$f":"SUM('1. kw:4. kw'!D26)","v":0},{"$f":"SUM('1. kw:4. kw'!E26)","v":0},{"$nulls":6},0]
[null,null,{"$f":"SUM('1. kw:4. kw'!C27)","v":0},{"$f":"SUM('1. kw:4. kw'!D27)","v":0},{"$f":"SUM('1. kw:4. kw'!E27)","v":0},{"$nulls":6},0]
[null,null,{"$f":"SUM('1. kw:4. kw'!C28)","v":0},{"$f":"SUM('1. kw:4. kw'!D28)","v":0},{"$f":"SUM('1. kw:4. kw'!E28)","v":0},{"$nulls":6},0]
[null,null,{"$f":"SUM('1. kw:4. kw'!C29)","v":0},{"$f":"SUM('1. kw:4. kw'!D29)","v":0},{"$f":"SUM('1. kw:4. kw'!E29)","v":0},{"$nulls":6},0]
[null,null,{"$f":"SUM('1. kw:4. kw'!C30)","v":0},{"$f":"SUM('1. kw:4. kw'!D30)","v":0},{"$f":"SUM('1. kw:4. kw'!E30)","v":0},{"$nulls":6},0]
[null,null,{"$f":"SUM('1. kw:4. kw'!C31)","v":0},{"$f":"SUM('1. kw:4. kw'!D31)","v":0},{"$f":"SUM('1. kw:4. kw'!E31)","v":0},{"$nulls":6},0]
[null,null,{"$f":"SUM('1. kw:4. kw'!C32)","v":0},{"$f":"SUM('1. kw:4. kw'!D32)","v":0},{"$f":"SUM('1. kw:4. kw'!E32)","v":0},{"$nulls":6},0]
[null,null,{"$f":"SUM('1. kw:4. kw'!C33)","v":0},{"$f":"SUM('1. kw:4. kw'!D33)","v":0},{"$f":"SUM('1. kw:4. kw'!E33)","v":0},{"$nulls":6},0]
[null,null,{"$f":"SUM('1. kw:4. kw'!C34)","v":0},{"$f":"SUM('1. kw:4. kw'!D34)","v":0},{"$f":"SUM('1. kw:4. kw'!E34)","v":0},{"$nulls":6},0]
[null,null,{"$f":"SUM('1. kw:4. kw'!C35)","v":0},{"$f":"SUM('1. kw:4. kw'!D35)","v":0},{"$f":"SUM('1. kw:4. kw'!E35)","v":0},{"$nulls":6},0]
[null,null,{"$f":"SUM('1. kw:4. kw'!C36)","v":0},{"$f":"SUM('1. kw:4. kw'!D36)","v":0},{"$f":"SUM('1. kw:4. kw'!E36)","v":0},{"$nulls":6},0]

{"sheet":"1. kw","index":1,"n_rows":36,"n_cols":95,"rows_kept":36,"merged":[[3,0,3,6]]}
[{"$f":"Nazwa_firmy","v":"Nazwa firmy"}]
["Śledzenie obecności, 1. kwartał"]
["Data"]
[{"$f":"Nazwa_firmy","v":"Nazwa firmy"},{"$nulls":6},"POUFNE"]
["Nazwisko","Imię","Urlop","Osobiste","Zwolnienie lekarskie","1.01","2.01","3.01","4.01","5.01","6.01","7.01","8.01","9.01","10.01","11.01","12.01","13.01","14.01","15.01","16.01","17.01","18.01","19.01","20.01","21.01","22.01","23.01","24.01","25.01","26.01","27.01","28.01","29.01","30.01","31.01","1.02","2.02","3.02","4.02","5.02","6.02","7.02","8.02","9.02","10.02","11.02","12.02","13.02","14.02","15.02","16.02","17.02","18.02","19.02","20.02","21.02","22.02","23.02","24.02","25.02","26.02","27.02","28.02","1.03","2.03","3.03","4.03","5.03","6.03","7.03","8.03","9.03","10.03","11.03","12.03","13.03","14.03","15.03","16.03","17.03","18.03","19.03","20.03","21.03","22.03","23.03","24.03","25.03","26.03","27.03","28.03","29.03","30.03","31.03"]
[{"$f":"IF(ISBLANK('Podsumowanie od początku roku'!A6),\"\",'Podsumowanie od początku roku'!A6)","v":"Nazwisko"},{"$f":"IF(ISBLANK('Podsumowanie od początku roku'!B6),\"\",'Podsumowanie od początku roku'!B6)","v":"Imię"},{"$f":"COUNTIF($F6:$CQ6, \"U\")","v":3},{"$f":"COUNTIF($F6:$CQ6, \"O\")","v":0},{"$f":"COUNTIF($F6:$CQ6, \"Z\")","v":1},"u","u","u",{"$nulls":4},"z"]
[{"$f":"IF(ISBLANK('Podsumowanie od początku roku'!A7),\"\",'Podsumowanie od początku roku'!A7)","v":""},{"$f":"IF(ISBLANK('Podsumowanie od początku roku'!B7),\"\",'Podsumowanie od początku roku'!B7)","v":""},0,0,0]
[{"$f":"IF(ISBLANK('Podsumowanie od początku roku'!A8),\"\",'Podsumowanie od początku roku'!A8)","v":""},{"$f":"IF(ISBLANK('Podsumowanie od początku roku'!B8),\"\",'Podsumowanie od początku roku'!B8)","v":""},0,0,0]
[{"$f":"IF(ISBLANK('Podsumowanie od początku roku'!A9),\"\",'Podsumowanie od początku roku'!A9)","v":""},{"$f":"IF(ISBLANK('Podsumowanie od początku roku'!B9),\"\",'Podsumowanie od początku roku'!B9)","v":""},0,0,0]
[{"$f":"IF(ISBLANK('Podsumowanie od początku roku'!A10),\"\",'Podsumowanie od początku roku'!A10)","v":""},{"$f":"IF(ISBLANK('Podsumowanie od początku roku'!B10),\"\",'Podsumowanie od początku roku'!B10)","v":""},0,0,0]
[{"$f":"IF(ISBLANK('Podsumowanie od początku roku'!A11),\"\",'Podsumowanie od początku roku'!A11)","v":""},{"$f":"IF(ISBLANK('Podsumowanie od początku roku'!B11),\"\",'Podsumowanie od początku roku'!B11)","v":""},0,0,0]
[{"$f":"IF(ISBLANK('Podsumowanie od początku roku'!A12),\"\",'Podsumowanie od początku roku'!A12)","v":""},{"$f":"IF(ISBLANK('Podsumowanie od początku roku'!B12),\"\",'Podsumowanie od początku roku'!B12)","v":""},0,0,0]
[{"$f":"IF(ISBLANK('Podsumowanie od początku roku'!A13),\"\",'Podsumowanie od początku roku'!A13)","v":""},{"$f":"IF(ISBLANK('Podsumowanie od początku roku'!B13),\"\",'Podsumowanie od początku roku'!B13)","v":""},0,0,0]
[{"$f":"IF(ISBLANK('Podsumowanie od początku roku'!A14),\"\",'Podsumowanie od początku roku'!A14)","v":""},{"$f":"IF(ISBLANK('Podsumowanie od początku roku'!B14),\"\",'Podsumowanie od początku roku'!B14)","v":""},0,0,0]
[{"$f":"IF(ISBLANK('Podsumowanie od początku roku'!A15),\"\",'Podsumowanie od początku roku'!A15)","v":""},{"$f":"IF(ISBLANK('Podsumowanie od początku roku'!B15),\"\",'Podsumowanie od początku roku'!B15)","v":""},0,0,0]
[{"$f":"IF(ISBLANK('Podsumowanie od początku roku'!A16),\"\",'Podsumowanie od początku roku'!A16)","v":""},{"$f":"IF(ISBLANK('Podsumowanie od początku roku'!B16),\"\",'Podsumowanie od początku roku'!B16)","v":""},0,0,0]
[{"$f":"IF(ISBLANK('Podsumowanie od początku roku'!A17),\"\",'Podsumowanie od początku roku'!A17)","v":""},{"$f":"IF(ISBLANK('Podsumowanie od początku roku'!B17),\"\",'Podsumowanie od początku roku'!B17)","v":""},0,0,0]
[{"$f":"IF(ISBLANK('Podsumowanie od początku roku'!A18),\"\",'Podsumowanie od początku roku'!A18)","v":""},{"$f":"IF(ISBLANK('Podsumowanie od początku roku'!B18),\"\",'Podsumowanie od początku roku'!B18)","v":""},0,0,0]
[{"$f":"IF(ISBLANK('Podsumowanie od początku roku'!A19),\"\",'Podsumowanie od początku roku'!A19)","v":""},{"$f":"IF(ISBLANK('Podsumowanie od początku roku'!B19),\"\",'Podsumowanie od początku roku'!B19)","v":""},0,0,0]
[{"$f":"IF(ISBLANK('Podsumowanie od początku roku'!A20),\"\",'Podsumowanie od początku roku'!A20)","v":""},{"$f":"IF(ISBLANK('Podsumowanie od początku roku'!B20),\"\",'Podsumowanie od początku roku'!B20)","v":""},0,0,0]
[{"$f":"IF(ISBLANK('Podsumowanie od początku roku'!A21),\"\",'Podsumowanie od początku roku'!A21)","v":""},{"$f":"IF(ISBLANK('Podsumowanie od początku roku'!B21),\"\",'Podsumowanie od początku roku'!B21)","v":""},0,0,0]
[{"$f":"IF(ISBLANK('Podsumowanie od początku roku'!A22),\"\",'Podsumowanie od początku roku'!A22)","v":""},{"$f":"IF(ISBLANK('Podsumowanie od początku roku'!B22),\"\",'Podsumowanie od początku roku'!B22)","v":""},0,0,0]
[{"$f":"IF(ISBLANK('Podsumowanie od początku roku'!A23),\"\",'Podsumowanie od początku roku'!A23)","v":""},{"$f":"IF(ISBLANK('Podsumowanie od początku roku'!B23),\"\",'Podsumowanie od początku roku'!B23)","v":""},0,0,0]
[{"$f":"IF(ISBLANK('Podsumowanie od początku roku'!A24),\"\",'Podsumowanie od początku roku'!A24)","v":""},{"$f":"IF(ISBLANK('Podsumowanie od początku roku'!B24),\"\",'Podsumowanie od początku roku'!B24)","v":""},0,0,0]
[{"$f":"IF(ISBLANK('Podsumowanie od początku roku'!A25),\"\",'Podsumowanie od początku roku'!A25)","v":""},{"$f":"IF(ISBLANK('Podsumowanie od początku roku'!B25),\"\",'Podsumowanie od początku roku'!B25)","v":""},0,0,0]
[{"$f":"IF(ISBLANK('Podsumowanie od początku roku'!A26),\"\",'Podsumowanie od początku roku'!A26)","v":""},{"$f":"IF(ISBLANK('Podsumowanie od początku roku'!B26),\"\",'Podsumowanie od początku roku'!B26)","v":""},0,0,0]
[{"$f":"IF(ISBLANK('Podsumowanie od początku roku'!A27),\"\",'Podsumowanie od początku roku'!A27)","v":""},{"$f":"IF(ISBLANK('Podsumowanie od początku roku'!B27),\"\",'Podsumowanie od początku roku'!B27)","v":""},0,0,0]
[{"$f":"IF(ISBLANK('Podsumowanie od początku roku'!A28),\"\",'Podsumowanie od początku roku'!A28)","v":""},{"$f":"IF(ISBLANK('Podsumowanie od początku roku'!B28),\"\",'Podsumowanie od początku roku'!B28)","v":""},0,0,0]
[{"$f":"IF(ISBLANK('Podsumowanie od początku roku'!A29),\"\",'Podsumowanie od początku roku'!A29)","v":""},{"$f":"IF(ISBLANK('Podsumowanie od początku roku'!B29),\"\",'Podsumowanie od początku roku'!B29)","v":""},0,0,0]
[{"$f":"IF(ISBLANK('Podsumowanie od początku roku'!A30),\"\",'Podsumowanie od początku roku'!A30)","v":""},{"$f":"IF(ISBLANK('Podsumowanie od początku roku'!B30),\"\",'Podsumowanie od początku roku'!B30)","v":""},0,0,0]
[{"$f":"IF(ISBLANK('Podsumowanie od początku roku'!A31),\"\",'Podsumowanie od początku roku'!A31)","v":""},{"$f":"IF(ISBLANK('Podsumowanie od początku roku'!B31),\"\",'Podsumowanie od początku roku'!B31)","v":""},0,0,0]
[{"$f":"IF(ISBLANK('Podsumowanie od początku roku'!A32),\"\",'Podsumowanie od początku roku'!A32)","v":""},{"$f":"IF(ISBLANK('Podsumowanie od początku roku'!B32),\"\",'Podsumowanie od początku roku'!B32)","v":""},0,0,0]
[{"$f":"IF(ISBLANK('Podsumowanie od początku roku'!A33),\"\",'Podsumowanie od początku roku'!A33)","v":""},{"$f":"IF(ISBLANK('Podsumowanie od początku roku'!B33),\"\",'Podsumowanie od początku roku'!B33)","v":""},0,0,0]
[{"$f":"IF(ISBLANK('Podsumowanie od początku roku'!A34),\"\",'Podsumowanie od początku roku'!A34)","v":""},{"$f":"IF(ISBLANK('Podsumowanie od początku roku'!B34),\"\",'Podsumowanie od początku roku'!B34)","v":""},0,0,0]
[{"$f":"IF(ISBLANK('Podsumowanie od początku roku'!A35),\"\",'Podsumowanie od początku roku'!A35)","v":""},{"$f":"IF(ISBLANK('Podsumowanie od początku roku'!B35),\"\",'Podsumowanie od początku roku'!B35)","v":""},0,0,0]
[{"$f":"IF(ISBLANK('Podsumowanie od początku roku'!A36),\"\",'Podsumowanie od początku roku'!A36)","v":""},{"$f":"IF(ISBLANK('Podsumowanie od początku roku'!B36),\"\",'Podsumowanie od początku roku'!B36)","v":""},0,0,0]

{"sheet":"2. kw","index":2,"n_rows":36,"n_cols":96,"rows_kept":36,"merged":[[3,0,3,6]]}
[{"$f":"Nazwa_firmy","v":"Nazwa firmy"}]
["Śledzenie obecności, 2. kwartał"]
["Data"]
[{"$f":"Nazwa_firmy","v":"Nazwa firmy"},{"$nulls":6},"POUFNE"]
["Nazwisko","Imię","Urlop","Osobiste","Zwolnienie lekarskie","1.04","2.04","3.04","4.04","5.04","6.04","7.04","8.04","9.04","10.04","11.04","12.04","13.04","14.04","15.04","16.04","17.04","18.04","19.04","20.04","21.04","22.04","23.04","24.04","25.04","26.04","27.04","28.04","29.04","30.04","1.05","2.05","3.05","4.05","5.05","6.05","7.05","8.05","9.05","10.05","11.05","12.05","13.05","14.05","15.05","16.05","17.05","18.05","19.05","20.05","21.05","22.05","23.05","24.05","25.05","26.05","27.05","28.05","29.05","30.05","31.05","1.06","2.06","3.06","4.06","5.06","6.06","7.06","8.06","9.06","10.06","11.06","12.06","13.06","14.06","15.06","16.06","17.06","18.06","19.06","20.06","21.06","22.06","23.06","24.06","25.06","26.06","27.06","28.06","29.06","30.06"]
[{"$f":"IF(ISBLANK('Podsumowanie od początku roku'!A6),\"\",'Podsumowanie od początku roku'!A6)","v":"Nazwisko"},{"$f":"IF(ISBLANK('Podsumowanie od początku roku'!B6),\"\",'Podsumowanie od początku roku'!B6)","v":"Imię"},{"$f":"COUNTIF($F6:$CR6, \"U\")","v":0},{"$f":"COUNTIF($F6:$CR6, \"O\")","v":0},{"$f":"COUNTIF($F6:$CR6,\"Z\")","v":0}]
[{"$f":"IF(ISBLANK('Podsumowanie od początku roku'!A7),\"\",'Podsumowanie od początku roku'!A7)","v":""},{"$f":"IF(ISBLANK('Podsumowanie od początku roku'!B7),\"\",'Podsumowanie od początku roku'!B7)","v":""},{"$f":"COUNTIF($F7:$CR7, \"U\")","v":0},{"$f":"COUNTIF($F7:$CR7, \"O\")","v":0},{"$f":"COUNTIF($F7:$CR7,\"Z\")","v":0}]
[{"$f":"IF(ISBLANK('Podsumowanie od początku roku'!A8),\"\",'Podsumowanie od początku roku'!A8)","v":""},{"$f":"IF(ISBLANK('Podsumowanie od początku roku'!B8),\"\",'Podsumowanie od początku roku'!B8)","v":""},0,0,0]
[{"$f":"IF(ISBLANK('Podsumowanie od początku roku'!A9),\"\",'Podsumowanie od początku roku'!A9)","v":""},{"$f":"IF(ISBLANK('Podsumowanie od początku roku'!B9),\"\",'Podsumowanie od początku roku'!B9)","v":""},0,0,0]
[{"$f":"IF(ISBLANK('Podsumowanie od początku roku'!A10),\"\",'Podsumowanie od początku roku'!A10)","v":""},{"$f":"IF(ISBLANK('Podsumowanie od początku roku'!B10),\"\",'Podsumowanie od początku roku'!B10)","v":""},0,0,0]
[{"$f":"IF(ISBLANK('Podsumowanie od początku roku'!A11),\"\",'Podsumowanie od początku roku'!A11)","v":""},{"$f":"IF(ISBLANK('Podsumowanie od początku roku'!B11),\"\",'Podsumowanie od początku roku'!B11)","v":""},0,0,0]
[{"$f":"IF(ISBLANK('Podsumowanie od początku roku'!A12),\"\",'Podsumowanie od początku roku'!A12)","v":""},{"$f":"IF(ISBLANK('Podsumowanie od początku roku'!B12),\"\",'Podsumowanie od początku roku'!B12)","v":""},0,0,0]
[{"$f":"IF(ISBLANK('Podsumowanie od początku roku'!A13),\"\",'Podsumowanie od początku roku'!A13)","v":""},{"$f":"IF(ISBLANK('Podsumowanie od początku roku'!B13),\"\",'Podsumowanie od początku roku'!B13)","v":""},0,0,0]
[{"$f":"IF(ISBLANK('Podsumowanie od początku roku'!A14),\"\",'Podsumowanie od początku roku'!A14)","v":""},{"$f":"IF(ISBLANK('Podsumowanie od początku roku'!B14),\"\",'Podsumowanie od początku roku'!B14)","v":""},0,0,0]
[{"$f":"IF(ISBLANK('Podsumowanie od początku roku'!A15),\"\",'Podsumowanie od początku roku'!A15)","v":""},{"$f":"IF(ISBLANK('Podsumowanie od początku roku'!B15),\"\",'Podsumowanie od początku roku'!B15)","v":""},0,0,0]
[{"$f":"IF(ISBLANK('Podsumowanie od początku roku'!A16),\"\",'Podsumowanie od początku roku'!A16)","v":""},{"$f":"IF(ISBLANK('Podsumowanie od początku roku'!B16),\"\",'Podsumowanie od początku roku'!B16)","v":""},0,0,0]
[{"$f":"IF(ISBLANK('Podsumowanie od początku roku'!A17),\"\",'Podsumowanie od początku roku'!A17)","v":""},{"$f":"IF(ISBLANK('Podsumowanie od początku roku'!B17),\"\",'Podsumowanie od początku roku'!B17)","v":""},0,0,0]
[{"$f":"IF(ISBLANK('Podsumowanie od początku roku'!A18),\"\",'Podsumowanie od początku roku'!A18)","v":""},{"$f":"IF(ISBLANK('Podsumowanie od początku roku'!B18),\"\",'Podsumowanie od początku roku'!B18)","v":""},0,0,0]
[{"$f":"IF(ISBLANK('Podsumowanie od początku roku'!A19),\"\",'Podsumowanie od początku roku'!A19)","v":""},{"$f":"IF(ISBLANK('Podsumowanie od początku roku'!B19),\"\",'Podsumowanie od początku roku'!B19)","v":""},0,0,0]
[{"$f":"IF(ISBLANK('Podsumowanie od początku roku'!A20),\"\",'Podsumowanie od początku roku'!A20)","v":""},{"$f":"IF(ISBLANK('Podsumowanie od początku roku'!B20),\"\",'Podsumowanie od początku roku'!B20)","v":""},0,0,0]
[{"$f":"IF(ISBLANK('Podsumowanie od początku roku'!A21),\"\",'Podsumowanie od początku roku'!A21)","v":""},{"$f":"IF(ISBLANK('Podsumowanie od początku roku'!B21),\"\",'Podsumowanie od początku roku'!B21)","v":""},0,0,0]
[{"$f":"IF(ISBLANK('Podsumowanie od początku roku'!A22),\"\",'Podsumowanie od początku roku'!A22)","v":""},{"$f":"IF(ISBLANK('Podsumowanie od początku roku'!B22),\"\",'Podsumowanie od początku roku'!B22)","v":""},0,0,0]
[{"$f":"IF(ISBLANK('Podsumowanie od początku roku'!A23),\"\",'Podsumowanie od początku roku'!A23)","v":""},{"$f":"IF(ISBLANK('Podsumowanie od początku roku'!B23),\"\",'Podsumowanie od początku roku'!B23)","v":""},0,0,0]
[{"$f":"IF(ISBLANK('Podsumowanie od początku roku'!A24),\"\",'Podsumowanie od początku roku'!A24)","v":""},{"$f":"IF(ISBLANK('Podsumowanie od początku roku'!B24),\"\",'Podsumowanie od początku roku'!B24)","v":""},0,0,0]
[{"$f":"IF(ISBLANK('Podsumowanie od początku roku'!A25),\"\",'Podsumowanie od początku roku'!A25)","v":""},{"$f":"IF(ISBLANK('Podsumowanie od początku roku'!B25),\"\",'Podsumowanie od początku roku'!B25)","v":""},0,0,0]
[{"$f":"IF(ISBLANK('Podsumowanie od początku roku'!A26),\"\",'Podsumowanie od początku roku'!A26)","v":""},{"$f":"IF(ISBLANK('Podsumowanie od początku roku'!B26),\"\",'Podsumowanie od początku roku'!B26)","v":""},0,0,0]
[{"$f":"IF(ISBLANK('Podsumowanie od początku roku'!A27),\"\",'Podsumowanie od początku roku'!A27)","v":""},{"$f":"IF(ISBLANK('Podsumowanie od początku roku'!B27),\"\",'Podsumowanie od początku roku'!B27)","v":""},0,0,0]
[{"$f":"IF(ISBLANK('Podsumowanie od początku roku'!A28),\"\",'Podsumowanie od początku roku'!A28)","v":""},{"$f":"IF(ISBLANK('Podsumowanie od początku roku'!B28),\"\",'Podsumowanie od początku roku'!B28)","v":""},0,0,0]
[{"$f":"IF(ISBLANK('Podsumowanie od początku roku'!A29),\"\",'Podsumowanie od początku roku'!A29)","v":""},{"$f":"IF(ISBLANK('Podsumowanie od początku roku'!B29),\"\",'Podsumowanie od początku roku'!B29)","v":""},0,0,0]
[{"$f":"IF(ISBLANK('Podsumowanie od początku roku'!A30),\"\",'Podsumowanie od początku roku'!A30)","v":""},{"$f":"IF(ISBLANK('Podsumowanie od początku roku'!B30),\"\",'Podsumowanie od początku roku'!B30)","v":""},0,0,0]
[{"$f":"IF(ISBLANK('Podsumowanie od początku roku'!A31),\"\",'Podsumowanie od początku roku'!A31)","v":""},{"$f":"IF(ISBLANK('Podsumowanie od początku roku'!B31),\"\",'Podsumowanie od początku roku'!B31)","v":""},0,0,0]
[{"$f":"IF(ISBLANK('Podsumowanie od początku roku'!A32),\"\",'Podsumowanie od początku roku'!A32)","v":""},{"$f":"IF(ISBLANK('Podsumowanie od początku roku'!B32),\"\",'Podsumowanie od początku roku'!B32)","v":""},0,0,0]
[{"$f":"IF(ISBLANK('Podsumowanie od początku roku'!A33),\"\",'Podsumowanie od początku roku'!A33)","v":""},{"$f":"IF(ISBLANK('Podsumowanie od początku roku'!B33),\"\",'Podsumowanie od początku roku'!B33)","v":""},0,0,0]
[{"$f":"IF(ISBLANK('Podsumowanie od początku roku'!A34),\"\",'Podsumowanie od początku roku'!A34)","v":""},{"$f":"IF(ISBLANK('Podsumowanie od początku roku'!B34),\"\",'Podsumowanie od początku roku'!B34)","v":""},0,0,0]
[{"$f":"IF(ISBLANK('Podsumowanie od początku roku'!A35),\"\",'Podsumowanie od początku roku'!A35)","v":""},{"$f":"IF(ISBLANK('Podsumowanie od początku roku'!B35),\"\",'Podsumowanie od początku roku'!B35)","v":""},0,0,0]
[{"$f":"IF(ISBLANK('Podsumowanie od początku roku'!A36),\"\",'Podsumowanie od początku roku'!A36)","v":""},{"$f":"IF(ISBLANK('Podsumowanie od początku roku'!B36),\"\",'Podsumowanie od początku roku'!B36)","v":""},0,0,0]

{"sheet":"3. kw","index":3,"n_rows":36,"n_cols":97,"rows_kept":36,"merged":[[3,0,3,6]]}
[{"$f":"Nazwa_firmy","v":"Nazwa firmy"}]
["Śledzenie obecności, 3. kwartał"]
["Data"]
[{"$f":"Nazwa_firmy","v":"Nazwa firmy"},{"$nulls":6},"POUFNE"]
["Nazwisko","Imię","Urlop","Osobiste","Zwolnienie lekarskie","1.07","2.07","3.07","4.07","5.07","6.07","7.07","8.07","9.07","10.07","11.07","12.07","13.07","14.07","15.07","16.07","17.07","18.07","19.07","20.07","21.07","22.07","23.07","24.07","25.07","26.07","27.07","28.07","29.07","30.07","31.07","1.08","2.08","3.08","4.08","5.08","6.08","7.08","8.08","9.08","10.08","11.08","12.08","13.08","14.08","15.08","16.08","17.08","18.08","19.08","20.08","21.08","22.08","23.08","24.08","25.08","26.08","27.08","28.08","29.08","30.08","31.08","1.09","2.09","3.09","4.09","5.09","6.09","7.09","8.09","9.09","10.09","11.09","12.09","13.09","14.09","15.09","16.09","17.09","18.09","19.09","20.09","21.09","22.09","23.09","24.09","25.09","26.09","27.09","28.09","29.09","30.09"]
[{"$f":"IF(ISBLANK('Podsumowanie od początku roku'!A6),\"\",'Podsumowanie od początku roku'!A6)","v":"Nazwisko"},{"$f":"IF(ISBLANK('Podsumowanie od początku roku'!B6),\"\",'Podsumowanie od początku roku'!B6)","v":"Imię"},{"$f":"COUNTIF($F6:$CS6, \"U\")","v":0},{"$f":"COUNTIF($F6:$CS6, \"O\")","v":0},{"$f":"COUNTIF($F6:$CS6,\"Z\")","v":0}]
[{"$f":"IF(ISBLANK('Podsumowanie od początku roku'!A7),\"\",'Podsumowanie od początku roku'!A7)","v":""},{"$f":"IF(ISBLANK('Podsumowanie od początku roku'!B7),\"\",'Podsumowanie od początku roku'!B7)","v":""},0,0,0]
[{"$f":"IF(ISBLANK('Podsumowanie od początku roku'!A8),\"\",'Podsumowanie od początku roku'!A8)","v":""},{"$f":"IF(ISBLANK('Podsumowanie od początku roku'!B8),\"\",'Podsumowanie od początku roku'!B8)","v":""},0,0,0]
[{"$f":"IF(ISBLANK('Podsumowanie od początku roku'!A9),\"\",'Podsumowanie od początku roku'!A9)","v":""},{"$f":"IF(ISBLANK('Podsumowanie od początku roku'!B9),\"\",'Podsumowanie od początku roku'!B9)","v":""},0,0,0]
[{"$f":"IF(ISBLANK('Podsumowanie od początku roku'!A10),\"\",'Podsumowanie od początku roku'!A10)","v":""},{"$f":"IF(ISBLANK('Podsumowanie od początku roku'!B10),\"\",'Podsumowanie od początku roku'!B10)","v":""},0,0,0]
[{"$f":"IF(ISBLANK('Podsumowanie od początku roku'!A11),\"\",'Podsumowanie od początku roku'!A11)","v":""},{"$f":"IF(ISBLANK('Podsumowanie od początku roku'!B11),\"\",'Podsumowanie od początku roku'!B11)","v":""},0,0,0]
[{"$f":"IF(ISBLANK('Podsumowanie od początku roku'!A12),\"\",'Podsumowanie od początku roku'!A12)","v":""},{"$f":"IF(ISBLANK('Podsumowanie od początku roku'!B12),\"\",'Podsumowanie od początku roku'!B12)","v":""},0,0,0]
[{"$f":"IF(ISBLANK('Podsumowanie od początku roku'!A13),\"\",'Podsumowanie od początku roku'!A13)","v":""},{"$f":"IF(ISBLANK('Podsumowanie od początku roku'!B13),\"\",'Podsumowanie od początku roku'!B13)","v":""},0,0,0]
[{"$f":"IF(ISBLANK('Podsumowanie od początku roku'!A14),\"\",'Podsumowanie od początku roku'!A14)","v":""},{"$f":"IF(ISBLANK('Podsumowanie od początku roku'!B14),\"\",'Podsumowanie od początku roku'!B14)","v":""},0,0,0]
[{"$f":"IF(ISBLANK('Podsumowanie od początku roku'!A15),\"\",'Podsumowanie od początku roku'!A15)","v":""},{"$f":"IF(ISBLANK('Podsumowanie od początku roku'!B15),\"\",'Podsumowanie od początku roku'!B15)","v":""},0,0,0]
[{"$f":"IF(ISBLANK('Podsumowanie od początku roku'!A16),\"\",'Podsumowanie od początku roku'!A16)","v":""},{"$f":"IF(ISBLANK('Podsumowanie od początku roku'!B16),\"\",'Podsumowanie od początku roku'!B16)","v":""},0,0,0]
[{"$f":"IF(ISBLANK('Podsumowanie od początku roku'!A17),\"\",'Podsumowanie od początku roku'!A17)","v":""},{"$f":"IF(ISBLANK('Podsumowanie od początku roku'!B17),\"\",'Podsumowanie od początku roku'!B17)","v":""},0,0,0]
[{"$f":"IF(ISBLANK('Podsumowanie od początku roku'!A18),\"\",'Podsumowanie od początku roku'!A18)","v":""},{"$f":"IF(ISBLANK('Podsumowanie od początku roku'!B18),\"\",'Podsumowanie od początku roku'!B18)","v":""},0,0,0]
[{"$f":"IF(ISBLANK('Podsumowanie od początku roku'!A19),\"\",'Podsumowanie od początku roku'!A19)","v":""},{"$f":"IF(ISBLANK('Podsumowanie od początku roku'!B19),\"\",'Podsumowanie od początku roku'!B19)","v":""},0,0,0]
[{"$f":"IF(ISBLANK('Podsumowanie od początku roku'!A20),\"\",'Podsumowanie od początku roku'!A20)","v":""},{"$f":"IF(ISBLANK('Podsumowanie od początku roku'!B20),\"\",'Podsumowanie od początku roku'!B20)","v":""},0,0,0]
[{"$f":"IF(ISBLANK('Podsumowanie od początku roku'!A21),\"\",'Podsumowanie od początku roku'!A21)","v":""},{"$f":"IF(ISBLANK('Podsumowanie od początku roku'!B21),\"\",'Podsumowanie od początku roku'!B21)","v":""},0,0,0]
[{"$f":"IF(ISBLANK('Podsumowanie od początku roku'!A22),\"\",'Podsumowanie od początku roku'!A22)","v":""},{"$f":"IF(ISBLANK('Podsumowanie od początku roku'!B22),\"\",'Podsumowanie od początku roku'!B22)","v":""},0,0,0]
[{"$f":"IF(ISBLANK('Podsumowanie od początku roku'!A23),\"\",'Podsumowanie od początku roku'!A23)","v":""},{"$f":"IF(ISBLANK('Podsumowanie od początku roku'!B23),\"\",'Podsumowanie od początku roku'!B23)","v":""},0,0,0]
[{"$f":"IF(ISBLANK('Podsumowanie od początku roku'!A24),\"\",'Podsumowanie od początku roku'!A24)","v":""},{"$f":"IF(ISBLANK('Podsumowanie od początku roku'!B24),\"\",'Podsumowanie od początku roku'!B24)","v":""},0,0,0]
[{"$f":"IF(ISBLANK('Podsumowanie od początku roku'!A25),\"\",'Podsumowanie od początku roku'!A25)","v":""},{"$f":"IF(ISBLANK('Podsumowanie od początku roku'!B25),\"\",'Podsumowanie od początku roku'!B25)","v":""},0,0,0]
[{"$f":"IF(ISBLANK('Podsumowanie od początku roku'!A26),\"\",'Podsumowanie od początku roku'!A26)","v":""},{"$f":"IF(ISBLANK('Podsumowanie od początku roku'!B26),\"\",'Podsumowanie od początku roku'!B26)","v":""},0,0,0]
[{"$f":"IF(ISBLANK('Podsumowanie od początku roku'!A27),\"\",'Podsumowanie od początku roku'!A27)","v":""},{"$f":"IF(ISBLANK('Podsumowanie od początku roku'!B27),\"\",'Podsumowanie od początku roku'!B27)","v":""},0,0,0]
[{"$f":"IF(ISBLANK('Podsumowanie od początku roku'!A28),\"\",'Podsumowanie od początku roku'!A28)","v":""},{"$f":"IF(ISBLANK('Podsumowanie od początku roku'!B28),\"\",'Podsumowanie od początku roku'!B28)","v":""},0,0,0]
[{"$f":"IF(ISBLANK('Podsumowanie od początku roku'!A29),\"\",'Podsumowanie od początku roku'!A29)","v":""},{"$f":"IF(ISBLANK('Podsumowanie od początku roku'!B29),\"\",'Podsumowanie od początku roku'!B29)","v":""},0,0,0]
[{"$f":"IF(ISBLANK('Podsumowanie od początku roku'!A30),\"\",'Podsumowanie od początku roku'!A30)","v":""},{"$f":"IF(ISBLANK('Podsumowanie od początku roku'!B30),\"\",'Podsumowanie od początku roku'!B30)","v":""},0,0,0]
[{"$f":"IF(ISBLANK('Podsumowanie od początku roku'!A31),\"\",'Podsumowanie od początku roku'!A31)","v":""},{"$f":"IF(ISBLANK('Podsumowanie od początku roku'!B31),\"\",'Podsumowanie od początku roku'!B31)","v":""},0,0,0]
[{"$f":"IF(ISBLANK('Podsumowanie od początku roku'!A32),\"\",'Podsumowanie od początku roku'!A32)","v":""},{"$f":"IF(ISBLANK('Podsumowanie od początku roku'!B32),\"\",'Podsumowanie od początku roku'!B32)","v":""},0,0,0]
[{"$f":"IF(ISBLANK('Podsumowanie od początku roku'!A33),\"\",'Podsumowanie od początku roku'!A33)","v":""},{"$f":"IF(ISBLANK('Podsumowanie od początku roku'!B33),\"\",'Podsumowanie od początku roku'!B33)","v":""},0,0,0]
[{"$f":"IF(ISBLANK('Podsumowanie od początku roku'!A34),\"\",'Podsumowanie od początku roku'!A34)","v":""},{"$f":"IF(ISBLANK('Podsumowanie od początku roku'!B34),\"\",'Podsumowanie od początku roku'!B34)","v":""},0,0,0]
[{"$f":"IF(ISBLANK('Podsumowanie od początku roku'!A35),\"\",'Podsumowanie od początku roku'!A35)","v":""},{"$f":"IF(ISBLANK('Podsumowanie od początku roku'!B35),\"\",'Podsumowanie od początku roku'!B35)","v":""},0,0,0]
[{"$f":"IF(ISBLANK('Podsumowanie od początku roku'!A36),\"\",'Podsumowanie od początku roku'!A36)","v":""},{"$f":"IF(ISBLANK('Podsumowanie od początku roku'!B36),\"\",'Podsumowanie od początku roku'!B36)","v":""},0,0,0]

{"sheet":"4. kw","index":4,"n_rows":36,"n_cols":97,"rows_kept":36,"merged":[[3,0,3,6]]}
[{"$f":"Nazwa_firmy","v":"Nazwa firmy"}]
["Śledzenie obecności, 4. kwartał"]
["Data"]
[{"$f":"Nazwa_firmy","v":"Nazwa firmy"},{"$nulls":6},"POUFNE"]
["Nazwisko","Imię","Urlop","Osobiste","Zwolnienie lekarskie","1.10","2.10","3.10","4.10","5.10","6.10","7.10","8.10","9.10","10.10","11.10","12.10","13.10","14.10","15.10","16.10","17.10","18.10","19.10","20.10","21.10","22.10","23.10","24.10","25.10","26.10","27.10","28.10","29.10","30.10","31.10","1.11","2.11","3.11","4.11","5.11","6.11","7.11","8-11","9.11","10.11","11.11","12.11","13.11","14.11","15.11","16.11","17.11","18.11","19.11","20.11","21.11","22.11","23.11","24.11","25.11","26.11","27.11","28.11","29.11","30.11","1.12","2.12","3.12","4.12","5.12","6.12","7.12","8.12","9.12","10.12","11.12","12.12","13.12","14.12","15.12","16.12","17.12","18.12","19.12","20.12","21.12","22.12","23.12","24.12","25.12","26.12","27.12","28.12","29.12","30.12","31.12"]
[{"$f":"IF(ISBLANK('Podsumowanie od początku roku'!A6),\"\",'Podsumowanie od początku roku'!A6)","v":"Nazwisko"},{"$f":"IF(ISBLANK('Podsumowanie od początku roku'!B6),\"\",'Podsumowanie od początku roku'!B6)","v":"Imię"},{"$f":"COUNTIF($F6:$CS6, \"U\")","v":0},{"$f":"COUNTIF($F6:CS6, \"O\")","v":0},{"$f":"COUNTIF($F6:CS6,\"Z\")","v":0}]
[{"$f":"IF(ISBLANK('Podsumowanie od początku roku'!A7),\"\",'Podsumowanie od początku roku'!A7)","v":""},{"$f":"IF(ISBLANK('Podsumowanie od początku roku'!B7),\"\",'Podsumowanie od początku roku'!B7)","v":""},0,{"$f":"COUNTIF($F7:CS7, \"O\")","v":0},{"$f":"COUNTIF($F7:CS7,\"Z\")","v":0}]
[{"$f":"IF(ISBLANK('Podsumowanie od początku roku'!A8),\"\",'Podsumowanie od początku roku'!A8)","v":""},{"$f":"IF(ISBLANK('Podsumowanie od początku roku'!B8),\"\",'Podsumowanie od początku roku'!B8)","v":""},0,{"$f":"COUNTIF($F8:CS8, \"O\")","v":0},{"$f":"COUNTIF($F8:CS8,\"Z\")","v":0}]
[{"$f":"IF(ISBLANK('Podsumowanie od początku roku'!A9),\"\",'Podsumowanie od początku roku'!A9)","v":""},{"$f":"IF(ISBLANK('Podsumowanie od początku roku'!B9),\"\",'Podsumowanie od początku roku'!B9)","v":""},0,{"$f":"COUNTIF($F9:CS9, \"O\")","v":0},{"$f":"COUNTIF($F9:CS9,\"Z\")","v":0}]
[{"$f":"IF(ISBLANK('Podsumowanie od początku roku'!A10),\"\",'Podsumowanie od początku roku'!A10)","v":""},{"$f":"IF(ISBLANK('Podsumowanie od początku roku'!B10),\"\",'Podsumowanie od początku roku'!B10)","v":""},0,{"$f":"COUNTIF($F10:CS10, \"O\")","v":0},{"$f":"COUNTIF($F10:CS10,\"Z\")","v":0}]
[{"$f":"IF(ISBLANK('Podsumowanie od początku roku'!A11),\"\",'Podsumowanie od początku roku'!A11)","v":""},{"$f":"IF(ISBLANK('Podsumowanie od początku roku'!B11),\"\",'Podsumowanie od początku roku'!B11)","v":""},0,{"$f":"COUNTIF($F11:CS11, \"O\")","v":0},{"$f":"COUNTIF($F11:CS11,\"Z\")","v":0}]
[{"$f":"IF(ISBLANK('Podsumowanie od początku roku'!A12),\"\",'Podsumowanie od początku roku'!A12)","v":""},{"$f":"IF(ISBLANK('Podsumowanie od początku roku'!B12),\"\",'Podsumowanie od początku roku'!B12)","v":""},0,{"$f":"COUNTIF($F12:CS12, \"O\")","v":0},{"$f":"COUNTIF($F12:CS12,\"Z\")","v":0}]
[{"$f":"IF(ISBLANK('Podsumowanie od początku roku'!A13),\"\",'Podsumowanie od początku roku'!A13)","v":""},{"$f":"IF(ISBLANK('Podsumowanie od początku roku'!B13),\"\",'Podsumowanie od początku roku'!B13)","v":""},0,{"$f":"COUNTIF($F13:CS13, \"O\")","v":0},{"$f":"COUNTIF($F13:CS13,\"Z\")","v":0}]
[{"$f":"IF(ISBLANK('Podsumowanie od początku roku'!A14),\"\",'Podsumowanie od początku roku'!A14)","v":""},{"$f":"IF(ISBLANK('Podsumowanie od początku roku'!B14),\"\",'Podsumowanie od początku roku'!B14)","v":""},0,{"$f":"COUNTIF($F14:CS14, \"O\")","v":0},{"$f":"COUNTIF($F14:CS14,\"Z\")","v":0}]
[{"$f":"IF(ISBLANK('Podsumowanie od początku roku'!A15),\"\",'Podsumowanie od początku roku'!A15)","v":""},{"$f":"IF(ISBLANK('Podsumowanie od początku roku'!B15),\"\",'Podsumowanie od początku roku'!B15)","v":""},0,{"$f":"COUNTIF($F15:CS15, \"O\")","v":0},{"$f":"COUNTIF($F15:CS15,\"Z\")","v":0}]
[{"$f":"IF(ISBLANK('Podsumowanie od początku roku'!A16),\"\",'Podsumowanie od początku roku'!A16)","v":""},{"$f":"IF(ISBLANK('Podsumowanie od początku roku'!B16),\"\",'Podsumowanie od początku roku'!B16)","v":""},0,{"$f":"COUNTIF($F16:CS16, \"O\")","v":0},{"$f":"COUNTIF($F16:CS16,\"Z\")","v":0}]
[{"$f":"IF(ISBLANK('Podsumowanie od początku roku'!A17),\"\",'Podsumowanie od początku roku'!A17)","v":""},{"$f":"IF(ISBLANK('Podsumowanie od początku roku'!B17),\"\",'Podsumowanie od początku roku'!B17)","v":""},0,{"$f":"COUNTIF($F17:CS17, \"O\")","v":0},{"$f":"COUNTIF($F17:CS17,\"Z\")","v":0}]
[{"$f":"IF(ISBLANK('Podsumowanie od początku roku'!A18),\"\",'Podsumowanie od początku roku'!A18)","v":""},{"$f":"IF(ISBLANK('Podsumowanie od początku roku'!B18),\"\",'Podsumowanie od początku roku'!B18)","v":""},0,{"$f":"COUNTIF($F18:CS18, \"O\")","v":0},{"$f":"COUNTIF($F18:CS18,\"Z\")","v":0}]
[{"$f":"IF(ISBLANK('Podsumowanie od początku roku'!A19),\"\",'Podsumowanie od początku roku'!A19)","v":""},{"$f":"IF(ISBLANK('Podsumowanie od początku roku'!B19),\"\",'Podsumowanie od początku roku'!B19)","v":""},0,{"$f":"COUNTIF($F19:CS19, \"O\")","v":0},{"$f":"COUNTIF($F19:CS19,\"Z\")","v":0}]
[{"$f":"IF(ISBLANK('Podsumowanie od początku roku'!A20),\"\",'Podsumowanie od początku roku'!A20)","v":""},{"$f":"IF(ISBLANK('Podsumowanie od początku roku'!B20),\"\",'Podsumowanie od początku roku'!B20)","v":""},0,{"$f":"COUNTIF($F20:CS20, \"O\")","v":0},{"$f":"COUNTIF($F20:CS20,\"Z\")","v":0}]
[{"$f":"IF(ISBLANK('Podsumowanie od początku roku'!A21),\"\",'Podsumowanie od początku roku'!A21)","v":""},{"$f":"IF(ISBLANK('Podsumowanie od początku roku'!B21),\"\",'Podsumowanie od początku roku'!B21)","v":""},0,{"$f":"COUNTIF($F21:CS21, \"O\")","v":0},{"$f":"COUNTIF($F21:CS21,\"Z\")","v":0}]
[{"$f":"IF(ISBLANK('Podsumowanie od początku roku'!A22),\"\",'Podsumowanie od początku roku'!A22)","v":""},{"$f":"IF(ISBLANK('Podsumowanie od początku roku'!B22),\"\",'Podsumowanie od początku roku'!B22)","v":""},0,{"$f":"COUNTIF($F22:CS22, \"O\")","v":0},{"$f":"COUNTIF($F22:CS22,\"Z\")","v":0}]
[{"$f":"IF(ISBLANK('Podsumowanie od początku roku'!A23),\"\",'Podsumowanie od początku roku'!A23)","v":""},{"$f":"IF(ISBLANK('Podsumowanie od początku roku'!B23),\"\",'Podsumowanie od początku roku'!B23)","v":""},0,{"$f":"COUNTIF($F23:CS23, \"O\")","v":0},{"$f":"COUNTIF($F23:CS23,\"Z\")","v":0}]
[{"$f":"IF(ISBLANK('Podsumowanie od początku roku'!A24),\"\",'Podsumowanie od początku roku'!A24)","v":""},{"$f":"IF(ISBLANK('Podsumowanie od początku roku'!B24),\"\",'Podsumowanie od początku roku'!B24)","v":""},0,{"$f":"COUNTIF($F24:CS24, \"O\")","v":0},{"$f":"COUNTIF($F24:CS24,\"Z\")","v":0}]
[{"$f":"IF(ISBLANK('Podsumowanie od początku roku'!A25),\"\",'Podsumowanie od początku roku'!A25)","v":""},{"$f":"IF(ISBLANK('Podsumowanie od początku roku'!B25),\"\",'Podsumowanie od początku roku'!B25)","v":""},0,{"$f":"COUNTIF($F25:CS25, \"O\")","v":0},{"$f":"COUNTIF($F25:CS25,\"Z\")","v":0}]
[{"$f":"IF(ISBLANK('Podsumowanie od początku roku'!A26),\"\",'Podsumowanie od początku roku'!A26)","v":""},{"$f":"IF(ISBLANK('Podsumowanie od początku roku'!B26),\"\",'Podsumowanie od początku roku'!B26)","v":""},0,{"$f":"COUNTIF($F26:CS26, \"O\")","v":0},{"$f":"COUNTIF($F26:CS26,\"Z\")","v":0}]
[{"$f":"IF(ISBLANK('Podsumowanie od początku roku'!A27),\"\",'Podsumowanie od początku roku'!A27)","v":""},{"$f":"IF(ISBLANK('Podsumowanie od początku roku'!B27),\"\",'Podsumowanie od początku roku'!B27)","v":""},0,{"$f":"COUNTIF($F27:CS27, \"O\")","v":0},{"$f":"COUNTIF($F27:CS27,\"Z\")","v":0}]
[{"$f":"IF(ISBLANK('Podsumowanie od początku roku'!A28),\"\",'Podsumowanie od początku roku'!A28)","v":""},{"$f":"IF(ISBLANK('Podsumowanie od początku roku'!B28),\"\",'Podsumowanie od początku roku'!B28)","v":""},0,{"$f":"COUNTIF($F28:CS28, \"O\")","v":0},{"$f":"COUNTIF($F28:CS28,\"Z\")","v":0}]
[{"$f":"IF(ISBLANK('Podsumowanie od początku roku'!A29),\"\",'Podsumowanie od początku roku'!A29)","v":""},{"$f":"IF(ISBLANK('Podsumowanie od początku roku'!B29),\"\",'Podsumowanie od początku roku'!B29)","v":""},0,{"$f":"COUNTIF($F29:CS29, \"O\")","v":0},{"$f":"COUNTIF($F29:CS29,\"Z\")","v":0}]
[{"$f":"IF(ISBLANK('Podsumowanie od początku roku'!A30),\"\",'Podsumowanie od początku roku'!A30)","v":""},{"$f":"IF(ISBLANK('Podsumowanie od początku roku'!B30),\"\",'Podsumowanie od początku roku'!B30)","v":""},0,{"$f":"COUNTIF($F30:CS30, \"O\")","v":0},{"$f":"COUNTIF($F30:CS30,\"Z\")","v":0}]
[{"$f":"IF(ISBLANK('Podsumowanie od początku roku'!A31),\"\",'Podsumowanie od początku roku'!A31)","v":""},{"$f":"IF(ISBLANK('Podsumowanie od początku roku'!B31),\"\",'Podsumowanie od początku roku'!B31)","v":""},0,{"$f":"COUNTIF($F31:CS31, \"O\")","v":0},{"$f":"COUNTIF($F31:CS31,\"Z\")","v":0}]
[{"$f":"IF(ISBLANK('Podsumowanie od początku roku'!A32),\"\",'Podsumowanie od początku roku'!A32)","v":""},{"$f":"IF(ISBLANK('Podsumowanie od początku roku'!B32),\"\",'Podsumowanie od początku roku'!B32)","v":""},0,{"$f":"COUNTIF($F32:CS32, \"O\")","v":0},{"$f":"COUNTIF($F32:CS32,\"Z\")","v":0}]
[{"$f":"IF(ISBLANK('Podsumowanie od początku roku'!A33),\"\",'Podsumowanie od początku roku'!A33)","v":""},{"$f":"IF(ISBLANK('Podsumowanie od początku roku'!B33),\"\",'Podsumowanie od początku roku'!B33)","v":""},0,{"$f":"COUNTIF($F33:CS33, \"O\")","v":0},{"$f":"COUNTIF($F33:CS33,\"Z\")","v":0}]
[{"$f":"IF(ISBLANK('Podsumowanie od początku roku'!A34),\"\",'Podsumowanie od początku roku'!A34)","v":""},{"$f":"IF(ISBLANK('Podsumowanie od początku roku'!B34),\"\",'Podsumowanie od początku roku'!B34)","v":""},0,{"$f":"COUNTIF($F34:CS34, \"O\")","v":0},{"$f":"COUNTIF($F34:CS34,\"Z\")","v":0}]
[{"$f":"IF(ISBLANK('Podsumowanie od początku roku'!A35),\"\",'Podsumowanie od początku roku'!A35)","v":""},{"$f":"IF(ISBLANK('Podsumowanie od początku roku'!B35),\"\",'Podsumowanie od początku roku'!B35)","v":""},0,{"$f":"COUNTIF($F35:CS35, \"O\")","v":0},{"$f":"COUNTIF($F35:CS35,\"Z\")","v":0}]
[{"$f":"IF(ISBLANK('Podsumowanie od początku roku'!A36),\"\",'Podsumowanie od początku roku'!A36)","v":""},{"$f":"IF(ISBLANK('Podsumowanie od początku roku'!B36),\"\",'Podsumowanie od początku roku'!B36)","v":""},0,{"$f":"COUNTIF($F36:CS36, \"O\")","v":0},{"$f":"COUNTIF($F36:CS36,\"Z\")","v":0}]